[Event "10th LCC FIDE Open 2018"]
[Site "London"]
[Date "2018.12.15"]
[Round "7"]
[White "Davison, Chris"]
[Black "Rocco, Federico"]
[Result "0-1"]
[ECO "A37"]
[WhiteElo "2068"]
[BlackElo "2244"]
[Annotator "NA"]
[PlyCount "174"]
[EventDate "2018.12.09"]
[EventType "swiss"]
[EventCountry "ENG"]
[SourceTitle "playchess.com"]
[Source "ChessBase"]
[SourceQuality "1"]
[TimeControl "40/5400+30:1800+30"]

1. Nf3 {[%emt 0:09:49]} c5 {[%emt 0:10:01]} 2. c4 {[%emt 0:00:12]} g6 {[%emt 0:00:08]} 3. g3 {[%emt 0:00:06]} Bg7 {[%emt 0:00:06]} 4. Bg2 {[%emt 0:00:04]} Nc6 {[%emt 0:00:09]} 5. Nc3 {[%emt 0:00:22]} e6 {[%emt 0:00:10]} 6. e3 {[%emt 0:00:46]} Nge7 {[%emt 0:00:20]} 7. O-O {[%emt 0:00:23]} O-O {[%emt 0:00:15]} 8. d4 {[%emt 0:01:52]} cxd4 {[%emt 0:00:24]} 9. exd4 {[%emt 0:00:07]} d5 {[%emt 0:00:05]} 10. cxd5 {[%emt 0:02:25]} Nxd5 {[%emt 0:00:13]} 11. Nxd5 {[%emt 0:01:50]} exd5 {[%emt 0:05:46]} 12. Be3 {[%emt 0:03:12] A37: Symmetrical English vs ...g6: 4 Bg2 Bg7 5 Nf3} Qb6 {[%emt 0:01:46]} (12... Be6 13. Qd2 Qd7 14. Bh6 Bxh6 15. Qxh6 f6 16. Qd2 Rfe8 17. Rac1 Bh3 18. Bxh3 Qxh3 19. b4 a6 {½-½ (46) Vastrukhin,O (2398)-Pridorozhni,A (2571) Taganrog 2018}) 13. Qd2 {[%emt 0:01:42]} Bf5 {[%emt 0:02:15]} 14. Nh4 $146 {[%emt 0:05:50]} ({Predecessor:} 14. Rac1 Be4 15. Ne5 Bxg2 16. Kxg2 Rad8 17. Nxc6 bxc6 18. Rc5 Rfe8 19. Rfc1 Rd6 {1-0 (66) Popovic,M (2020)-Genzling,A (2095) Elsass 2004}) 14... Be6 {[%emt 0:00:31]} 15. Rfd1 {[%emt 0:02:31]} Rac8 {[%emt 0:00:40]} 16. Rac1 {[%emt 0:00:54]} a5 {[%emt 0:08:29]} 17. Rc5 {[%emt 0:03:32]} Rfd8 {[%emt 0:05:21]} 18. Rdc1 {[%emt 0:00:53]} Qb4 {[%emt 0:13:19]} 19. Nf3 {[%emt 0:12:30]} Qxd2 {[%emt 0:01:11]} 20. Bxd2 {[%emt 0:00:07]} Nxd4 {[%emt 0:09:42]} 21. Rxc8 {[%emt 0:01:53]} Bxc8 {[%emt 0:06:00]} 22. Nxd4 $11 {[%emt 0:00:46]} Bxd4 {[%emt 0:00:12]} 23. Bxa5 {[%emt 0:03:45]} b6 {[%emt 0:05:41]} 24. Rd1 {[%emt 0:03:07]} Bc5 {[%emt 0:03:07]} 25. Bc3 {[%emt 0:01:12]} d4 {[%emt 0:05:14]} 26. b4 {[%emt 0:03:29]} Bg4 {[%emt 0:01:26]} 27. Rd3 {[%emt 0:03:52]} Re8 {[%emt 0:06:33]} 28. Bd2 {[%emt 0:00:38]} Bf5 {[%emt 0:00:37]} 29. bxc5 {[%emt 0:05:24]} Bxd3 {[%emt 0:01:56]} 30. cxb6 {[%emt 0:00:05]} Ba6 {[%emt 0:04:18]} 31. b7 {[%emt 0:01:53]} d3 {[%emt 0:01:03]} 32. Bf3 {[%emt 0:02:34]} Bxb7 {[%emt 0:00:52]} 33. Bxb7 {[%emt 0:00:18]} Re2 {[%emt 0:00:06]} 34. Bc3 {[%emt 0:01:44]} d2 {[%emt 0:00:07]} 35. Bxd2 {[%emt 0:00:03]} Rxd2 {[%emt 0:00:08]} 36. a4 {[%emt 0:00:16]} Ra2 {[%emt 0:00:03]} 37. Bc6 {[%emt 0:00:07]} Kg7 {[%emt 0:00:02]} 38. Kg2 {[%emt 0:00:43]} Kf6 {[%emt 0:00:17]} 39. Kf3 {[%emt 0:00:47]} Ke5 {[%emt 0:00:05]} 40. h4 {[%emt 0:01:44]} f5 {[%emt 0:00:06]} 41. Ke3 {[%emt 0:32:06]} Ra3+ {[%emt 0:30:13]} 42. Ke2 {[%emt 0:00:48]} Kd4 {[%emt 0:00:05]} 43. Be8 {[%emt 0:01:00]} f4 {[%emt 0:00:25]} 44. gxf4 {[%emt 0:01:14]} Ke4 {[%emt 0:00:05]} 45. h5 {[%emt 0:05:59]} Ra2+ {[%emt 0:00:05]} 46. Kf1 {[%emt 0:00:08]} gxh5 {[%emt 0:00:06]} 47. Bxh5 {[%emt 0:01:10]} Rxa4 {[%emt 0:00:07]} 48. Kg2 {[%emt 0:01:00]} Kxf4 {[%emt 0:00:03]} 49. Bd1 {[%emt 0:00:48]} Ra5 {[%emt 0:00:07]} 50. Bc2 {[%emt 0:02:01]} Rg5+ {[%emt 0:00:26]} 51. Kh3 {[%emt 0:01:28]} Rc5 {[%emt 0:01:05]} 52. Bd1 {[%emt 0:00:57]} Rc1 {[%emt 0:00:10]} 53. Ba4 {[%emt 0:00:53]} Kf3 {[%emt 0:00:14]} 54. Kh2 {[%emt 0:00:40]} Kxf2 {[%emt 0:00:04]} 55. Be8 {[%emt 0:00:45]} Rc8 {[%emt 0:01:31]} 56. Bd7 {[%emt 0:00:12]} Rc7 {[%emt 0:00:10]} 57. Bb5 {[%emt 0:01:21]} Rc5 {[%emt 0:00:06]} 58. Be8 {[%emt 0:00:03]} Kf3 {[%emt 0:01:02]} 59. Kh3 {[%emt 0:00:14]} Kf4 {[%emt 0:00:28]} 60. Bd7 {[%emt 0:01:02]} Kg5 {[%emt 0:00:22]} 61. Ba4 {[%emt 0:01:38]} Rc3+ {[%emt 0:00:08]} 62. Kg2 {[%emt 0:00:05]} h5 {[%emt 0:00:02]} 63. Bd7 {[%emt 0:00:13]} h4 {[%emt 0:00:07]} 64. Kh2 {[%emt 0:00:16]} Kf4 {[%emt 0:02:00]} 65. Be6 {[%emt 0:00:34]} Rg3 {[%emt 0:00:26]} 66. Bd7 {[%emt 0:00:37]} Ke3 {[%emt 0:01:28]} 67. Be6 {[%emt 0:00:13]} Kf2 {[%emt 0:00:07]} 68. Bd5 {[%emt 0:00:07]} h3 {[%emt 0:00:29]} 69. Be6 {[%emt 0:00:11]} Re3 {[%emt 0:03:31]} 70. Bd7 {[%emt 0:01:00]} Re7 {[%emt 0:01:01]} 71. Bf5 {[%emt 0:01:17]} Re5 {[%emt 0:01:11]} 72. Bg4 {[%emt 0:00:22]} Re8 {[%emt 0:00:07]} 73. Bd7 {[%emt 0:00:27]} Rh8 {[%emt 0:00:08]} 74. Bg4 {[%emt 0:01:14]} Ke3 {[%emt 0:01:08]} 75. Be6 {[%emt 0:00:54]} Kf4 {[%emt 0:00:35]} 76. Bd7 {[%emt 0:00:23]} Rd8 {[%emt 0:04:50]} 77. Be6 {[%emt 0:01:45]} Rd3 {[%emt 0:00:22]} 78. Bc8 {[%emt 0:00:30]} Rc3 {[%emt 0:01:24]} 79. Be6 {[%emt 0:00:45]} Rf3 {[%emt 0:02:38]} 80. Bc8 {[%emt 0:01:10]} Kg5 {[%emt 0:00:49]} 81. Bxh3 {[%emt 0:06:50]} Kh4 {[%emt 0:00:05]} 82. Bg2 {[%emt 0:00:32]} Rf2 {[%emt 0:00:06]} 83. Kg1 {[%emt 0:00:03]} Kg3 {[%emt 0:00:04]} 84. Bb7 {[%emt 0:00:22]} Rb2 {[%emt 0:00:10]} 85. Be4 {[%emt 0:00:15]} Re2 {[%emt 0:00:05]} 86. Bd3 {[%emt 0:00:06]} Re1+ {[%emt 0:00:05]} 87. Bf1 {[%emt 0:00:03]} Rd1 {[%emt 0:00:05]} 0-1

[Event "10th LCC FIDE Open 2018"]
[Site "London"]
[Date "2018.12.15"]
[Round "7"]
[White "Marentini, Marcel"]
[Black "Cherniaev, Alexander"]
[Result "0-1"]
[ECO "A07"]
[WhiteElo "2030"]
[BlackElo "2393"]
[Annotator "NA"]
[PlyCount "103"]
[EventDate "2018.12.09"]
[EventType "swiss"]
[EventCountry "ENG"]
[SourceTitle "playchess.com"]
[Source "ChessBase"]
[SourceQuality "1"]
[TimeControl "40/5400+30:1800+30"]

1. Nf3 {[%emt 0:00:00]} d5 {[%emt 0:02:35]} 2. g3 {[%emt 0:00:00]} Nc6 {[%emt 0:00:15]} 3. c4 {[%emt 0:00:34] A07: Réti Opening: New York and Capablanca Systems} (3. d4 Bf5 4. Bg2 e6 5. O-O Nb4 6. Na3 c6 7. c3 Na6 8. Qb3 Qc8 9. Nh4 Be4 10. f3 Bg6 11. Nxg6 hxg6 12. e4 Nf6 13. e5 Nd7 14. f4 {1-0 (51) Grischuk,A (2766)-Duda,J (2737) chess.com INT 2018}) 3... e6 {[%emt 0:00:44]} 4. Bg2 {[%emt 0:00:23]} g6 {[%emt 0:00:03]} 5. O-O {[%emt 0:00:47]} Bg7 {[%emt 0:00:02]} 6. d3 {[%emt 0:00:54]} Nge7 {[%emt 0:00:11]} 7. Na3 {[%emt 0:02:16]} O-O {[%emt 0:00:20]} 8. Rb1 {[%emt 0:00:10]} a5 {[%emt 0:05:01]} 9. Nc2 $146 {[%emt 0:04:08]} ({Predecessor:} 9. Nb5 h6 10. cxd5 Nxd5 11. Bd2 e5 12. Nc3 Be6 13. Ne4 g5 14. h3 {½-½ (54) Carlstedt,J (2409)-Fries Nielsen,J (2430) Hamburg 2011}) 9... h6 {[%emt 0:10:33]} 10. e3 {[%emt 0:08:49]} dxc4 {[%emt 0:18:53]} 11. dxc4 {[%emt 0:00:12]} e5 {[%emt 0:00:27]} 12. Qe2 {[%emt 0:06:28]} f5 {[%emt 0:02:29]} 13. b3 {[%emt 0:04:37]} g5 {[%emt 0:07:53]} 14. Ba3 {[%emt 0:05:46]} Qe8 {[%emt 0:00:59]} 15. Nd2 {[%emt 0:00:27]} g4 {[%emt 0:03:50]} 16. f3 {[%emt 0:02:22]} h5 {[%emt 0:00:06]} 17. fxg4 {[%emt 0:10:57]} hxg4 {[%emt 0:00:11]} 18. Rbd1 {[%emt 0:00:03]} Ra6 {[%emt 0:08:16]} 19. h3 {[%emt 0:06:44]} gxh3 {[%emt 0:00:09]} 20. Bxh3 {[%emt 0:00:06]} e4 {[%emt 0:11:00]} 21. Rf2 {[%emt 0:05:03]} Ne5 {[%emt 0:03:40]} 22. Ne1 {[%emt 0:01:29]} Rg6 {[%emt 0:04:06]} 23. Nf1 {[%emt 0:00:55]} Rg5 {[%emt 0:01:53]} 24. Bb2 {[%emt 0:06:45]} N7c6 {[%emt 0:00:19]} 25. Ng2 {[%emt 0:04:48]} Nd3 {[%emt 0:04:43]} 26. Rxd3 {[%emt 0:02:40]} exd3 {[%emt 0:00:03]} 27. Qxd3 {[%emt 0:00:19]} Bxb2 {[%emt 0:00:32]} 28. Rxb2 {[%emt 0:00:06]} Qe5 {[%emt 0:00:39]} 29. Qd5+ {[%emt 0:01:58]} Be6 {[%emt 0:02:03]} 30. Qxe5 {[%emt 0:01:33]} Nxe5 {[%emt 0:00:02]} 31. Nf4 {[%emt 0:00:38]} Bf7 {[%emt 0:00:13]} 32. Bg2 {[%emt 0:01:38]} c6 {[%emt 0:00:43]} 33. Rd2 {[%emt 0:00:10]} Re8 {[%emt 0:00:20]} 34. Rd6 {[%emt 0:01:44]} Kf8 {[%emt 0:03:57]} 35. c5 $17 {[%emt 0:08:11]} a4 {[%emt 0:02:53]} 36. Rd4 {[%emt 0:00:09]} axb3 {[%emt 0:02:15]} 37. axb3 {[%emt 0:00:01]} Ra8 {[%emt 0:00:08]} 38. Rb4 {[%emt 0:01:17]} Ra7 {[%emt 0:00:27]} 39. Kf2 {[%emt 0:01:37]} Ke7 {[%emt 0:01:20]} 40. Ke1 {[%emt 0:01:01]} Rg8 {[%emt 0:01:22]} 41. Kd2 {[%emt 0:30:40]} Nd7 {[%emt 0:30:29]} 42. Bh3 {[%emt 0:00:32]} Nxc5 {[%emt 0:00:26]} 43. Bxf5 {[%emt 0:00:20]} Nxb3+ {[%emt 0:01:01]} 44. Kc3 {[%emt 0:00:17]} Nc5 {[%emt 0:00:20]} 45. g4 {[%emt 0:00:18]} b5 {[%emt 0:03:03]} 46. Ng3 {[%emt 0:00:37]} Ra3+ {[%emt 0:00:00]} 47. Kd2 {[%emt 0:00:00]} Ra2+ {[%emt 0:00:00]} 48. Kc3 {[%emt 0:00:00]} Na4+ {[%emt 0:00:00]} 49. Kd3 {[%emt 0:00:00]} c5 {[%emt 0:00:00]} 50. Re4+ {[%emt 0:00:00]} Kd6 {[%emt 0:00:00]} 51. Be6 {[%emt 0:00:00]} c4+ {[%emt 0:00:00]} 52. Kd4 {[%emt 0:01:16] Ke5+} 0-1

[Event "10th LCC FIDE Open 2018"]
[Site "London"]
[Date "2018.12.15"]
[Round "7"]
[White "Kromhout, Ewan"]
[Black "Roe, Simon J"]
[Result "1/2-1/2"]
[ECO "D05"]
[WhiteElo "2019"]
[BlackElo "2223"]
[Annotator "NA"]
[PlyCount "92"]
[EventDate "2018.12.09"]
[EventType "swiss"]
[EventCountry "ENG"]
[SourceTitle "playchess.com"]
[Source "ChessBase"]
[SourceQuality "1"]
[TimeControl "40/5400+30:1800+30"]

1. d4 {[%emt 0:00:00]} Nf6 {[%emt 0:00:00]} 2. Nf3 {[%emt 0:00:00]} d5 {[%emt 0:00:04]} 3. e3 {[%emt 0:00:00]} e6 {[%emt 0:01:28]} 4. Bd3 {[%emt 0:00:29]} c5 {[%emt 0:01:52]} 5. c3 {[%emt 0:00:06]} Nbd7 {[%emt 0:05:40]} 6. Nbd2 {[%emt 0:00:16]} g6 {[%emt 0:00:25]} 7. O-O {[%emt 0:04:30]} Bg7 {[%emt 0:00:13]} 8. e4 {[%emt 0:07:02]} dxe4 {[%emt 0:08:03]} 9. Nxe4 {[%emt 0:02:50]} Nxe4 {[%emt 0:00:06]} 10. Bxe4 {[%emt 0:00:14]} O-O {[%emt 0:00:48]} 11. Bg5 {[%emt 0:23:11]} Qb6 {[%emt 0:02:33]} 12. Qd2 {[%emt 0:07:11]} cxd4 {[%emt 0:03:46]} 13. cxd4 {[%emt 0:04:57]} Nf6 {[%emt 0:03:55]} 14. Rfe1 {[%emt 0:07:09]} Bd7 $11 {[%emt 0:13:33]} 15. Bc2 {[%emt 0:06:34]} Rac8 {[%emt 0:15:15]} 16. Bb3 {[%emt 0:00:41]} Bc6 {[%emt 0:03:14]} 17. Ne5 {[%emt 0:00:29]} Ne4 {[%emt 0:10:41]} 18. Rxe4 {[%emt 0:09:38]} Bxe4 {[%emt 0:00:23]} 19. Re1 {[%emt 0:14:09]} Bd5 {[%emt 0:13:17]} 20. Bxd5 {[%emt 0:01:19]} exd5 {[%emt 0:00:06]} 21. Nd7 {[%emt 0:01:29]} Qxd4 {[%emt 0:00:06]} 22. Qxd4 {[%emt 0:00:27]} Bxd4 {[%emt 0:00:06]} 23. Nxf8 {[%emt 0:00:13]} Kxf8 {[%emt 0:00:51]} 24. Rd1 {[%emt 0:00:50]} Bxb2 {[%emt 0:00:35]} 25. Rxd5 {[%emt 0:00:48]} f6 {[%emt 0:01:43]} 26. Be3 {[%emt 0:00:24]} Rc7 {[%emt 0:04:04]} 27. g3 {[%emt 0:01:08]} b6 {[%emt 0:01:40]} 28. Bf4 {[%emt 0:00:27]} Rb7 {[%emt 0:00:15]} 29. Rd8+ {[%emt 0:00:53]} Ke7 {[%emt 0:00:35]} 30. Rc8 {[%emt 0:02:53]} Ke6 {[%emt 0:02:33]} 31. Kg2 {[%emt 0:00:17]} f5 {[%emt 0:01:23]} 32. Kf3 {[%emt 0:00:12]} Rd7 {[%emt 0:00:26]} 33. Ke2 {[%emt 0:01:43]} Bd4 {[%emt 0:01:40]} 34. h4 {[%emt 0:00:58]} Kd5 {[%emt 0:00:42]} 35. f3 {[%emt 0:00:22]} Bc5 {[%emt 0:00:56]} 36. Kd3 {[%emt 0:00:52]} Re7 {[%emt 0:02:19]} 37. a4 {[%emt 0:00:25]} a5 {[%emt 0:00:24]} 38. Rd8+ {[%emt 0:00:33]} Kc6 {[%emt 0:00:29]} 39. Kc4 {[%emt 0:00:19]} Bf2 {[%emt 0:00:49]} 40. Rd6+ {[%emt 0:01:21]} Kb7 {[%emt 0:00:23]} 41. Rd8 {[%emt 0:32:07]} Bc5 {[%emt 0:09:19]} 42. Kb5 {[%emt 0:00:00]} Bf2 {[%emt 0:03:09]} 43. Rb8+ {[%emt 0:00:00]} Ka7 {[%emt 0:00:10]} 44. Rd8 {[%emt 0:00:00]} Kb7 {[%emt 0:02:16]} 45. Rb8+ {[%emt 0:00:00]} Ka7 {[%emt 0:00:05]} 46. Rd8 {[%emt 0:00:00]} Kb7 {[%emt 0:00:06]} 1/2-1/2

[Event "10th LCC FIDE Open 2018"]
[Site "London"]
[Date "2018.12.15"]
[Round "7"]
[White "Keely, Leo A"]
[Black "Dougan Maho, Harold"]
[Result "1-0"]
[ECO "B02"]
[WhiteElo "1964"]
[BlackElo "2204"]
[Annotator "NA"]
[PlyCount "101"]
[EventDate "2018.12.09"]
[EventType "swiss"]
[EventCountry "ENG"]
[SourceTitle "playchess.com"]
[Source "ChessBase"]
[SourceQuality "1"]
[TimeControl "40/5400+30:1800+30"]

1. e4 {[%emt 0:00:00]} Nf6 {[%emt 0:00:00]} 2. e5 {[%emt 0:00:29]} Nd5 {[%emt 0:00:00]} 3. Nc3 {[%emt 0:00:19]} Nxc3 {[%emt 0:00:41]} 4. dxc3 {[%emt 0:02:53]} d5 {[%emt 0:00:09]} 5. Nf3 {[%emt 0:01:09]} Bg4 {[%emt 0:02:39] B02: Alekhine's Defence: Chase Variation and lines with early Nc3} (5... c5 6. Bf4 Nc6 7. c4 e6 8. Qd2 Be7 9. Bd3 h6 10. h4 a6 11. h5 Nb4 12. Be2 dxc4 13. Bxc4 b5 {½-½ (24) Diogo,V (2290)-Spraggett,K (2606) Figueira da Foz 2009}) 6. h3 {[%emt 0:00:42]} Bh5 {[%emt 0:01:27]} 7. e6 $146 {[%emt 0:01:44]} ({Predecessor:} 7. g4 Bg6 8. e6 Qd6 9. exf7+ Bxf7 10. Qd4 Nd7 11. Bf4 Qe6+ 12. Ne5 g5 13. O-O-O Bg7 {0-1 (13) Lamas Mercadal,M (2188)-Garza Marco,S (2403) Zaragoza 2011}) 7... fxe6 {[%emt 0:03:19]} 8. g4 {[%emt 0:01:08]} Bf7 {[%emt 0:06:08]} 9. Ne5 {[%emt 0:01:36]} Bg8 {[%emt 0:01:03]} 10. Bb5+ {[%emt 0:01:06]} c6 {[%emt 0:01:34]} 11. Bd3 {[%emt 0:00:06]} Nd7 {[%emt 0:05:13]} 12. Bf4 {[%emt 0:01:50]} g5 {[%emt 0:05:59]} 13. Bg3 {[%emt 0:05:07]} Bg7 {[%emt 0:04:19]} 14. Qe2 {[%emt 0:00:17]} Qb6 {[%emt 0:08:06]} 15. O-O-O {[%emt 0:00:41]} O-O-O {[%emt 0:02:02]} 16. Rhe1 {[%emt 0:01:55]} Nc5 {[%emt 0:16:08]} 17. Qd2 {[%emt 0:15:01]} Bf6 {[%emt 0:02:38]} 18. f3 {[%emt 0:03:31]} Nxd3+ {[%emt 0:11:31]} 19. Qxd3 {[%emt 0:02:14]} h5 {[%emt 0:04:24]} 20. Qe2 {[%emt 0:00:46]} hxg4 {[%emt 0:02:51]} 21. hxg4 {[%emt 0:00:54]} Rh3 {[%emt 0:01:43]} 22. Bf2 {[%emt 0:00:08]} Qa5 {[%emt 0:02:37]} 23. Kb1 {[%emt 0:00:20]} Rh2 {[%emt 0:03:16]} 24. Nd3 $17 {[%emt 0:02:40]} (24. Qf1 $1 $11 {remains equal.}) 24... Qb5 {[%emt 0:03:22]} 25. Qe3 {[%emt 0:02:26]} b6 {[%emt 0:04:09]} 26. Rh1 {[%emt 0:07:37]} d4 {[%emt 0:03:47]} 27. Qe4 {[%emt 0:03:54]} Rxh1 {[%emt 0:00:29]} 28. Rxh1 {[%emt 0:00:05]} dxc3 {[%emt 0:00:09]} 29. b3 {[%emt 0:01:22]} Qd5 {[%emt 0:01:02]} 30. Qa4 {[%emt 0:01:47]} Qxf3 {[%emt 0:00:35]} 31. Qa6+ {[%emt 0:03:10]} Kb8 {[%emt 0:00:41]} 32. Rc1 {[%emt 0:05:13]} Bh7 {[%emt 0:00:56]} 33. Bxb6 {[%emt 0:02:32]} axb6 {[%emt 0:00:37]} 34. Qxb6+ {[%emt 0:00:07]} Kc8 {[%emt 0:00:34]} 35. Nc5 {[%emt 0:01:21]} Bxc2+ {[%emt 0:01:33]} 36. Ka1 {[%emt 0:00:05]} Rd7 {[%emt 0:01:20]} 37. Qa6+ {[%emt 0:01:24]} Kc7 {[%emt 0:00:49]} 38. Qa7+ {[%emt 0:07:51]} Kd6 {[%emt 0:00:07]} 39. Nxd7 {[%emt 0:00:17]} Bg7 {[%emt 0:00:40]} 40. Nb6 {[%emt 0:01:58]} Qf4 {[%emt 0:00:51]} 41. Qb8+ {[%emt 0:31:55]} Kc5 {[%emt 0:02:20]} 42. Qxf4 {[%emt 0:00:00]} gxf4 {[%emt 0:00:30]} 43. Na4+ {[%emt 0:00:00]} Kd4 {[%emt 0:01:19]} 44. Rxc2 {[%emt 0:00:00]} Kd3 {[%emt 0:00:14]} 45. Kb1 {[%emt 0:00:00]} Bd4 {[%emt 0:01:02]} 46. b4 {[%emt 0:00:00]} e5 {[%emt 0:06:07]} 47. Nc5+ {[%emt 0:00:00]} Ke3 {[%emt 0:00:33]} 48. Ne6 {[%emt 0:00:00]} f3 {[%emt 0:01:30]} 49. g5 {[%emt 0:00:00]} e4 {[%emt 0:06:00]} 50. g6 {[%emt 0:00:00]} Bf6 {[%emt 0:15:16]} 51. g7 {[%emt 0:00:34]} 1-0

[Event "10th LCC FIDE Open 2018"]
[Site "London"]
[Date "2018.12.15"]
[Round "7"]
[White "Penna, Tommaso"]
[Black "Laustsen, Lars"]
[Result "1-0"]
[ECO "D19"]
[WhiteElo "1963"]
[BlackElo "2186"]
[Annotator "NA"]
[PlyCount "69"]
[EventDate "2018.12.09"]
[EventType "swiss"]
[EventCountry "ENG"]
[SourceTitle "playchess.com"]
[Source "ChessBase"]
[SourceQuality "1"]
[TimeControl "40/5400+30:1800+30"]

1. d4 {[%emt 0:04:51]} d5 {[%emt 0:00:00]} 2. c4 {[%emt 0:00:04]} c6 {[%emt 0:00:00]} 3. Nf3 {[%emt 0:00:03]} Nf6 {[%emt 0:00:00]} 4. Nc3 {[%emt 0:00:03]} dxc4 {[%emt 0:00:00]} 5. a4 {[%emt 0:00:04]} Bf5 {[%emt 0:00:00]} 6. e3 {[%emt 0:00:03]} e6 {[%emt 0:00:02]} 7. Bxc4 {[%emt 0:00:03]} Bb4 {[%emt 0:00:05]} 8. O-O {[%emt 0:00:04]} Nbd7 {[%emt 0:00:14]} 9. Qe2 {[%emt 0:00:04]} Bg6 {[%emt 0:00:08]} 10. e4 {[%emt 0:00:04]} O-O {[%emt 0:00:07]} 11. Bd3 {[%emt 0:00:08]} Bh5 {[%emt 0:00:06]} 12. e5 {[%emt 0:00:11]} Nd5 {[%emt 0:00:09]} 13. Nxd5 {[%emt 0:00:03]} cxd5 {[%emt 0:00:05]} 14. Qe3 {[%emt 0:00:07]} Re8 {[%emt 0:00:11]} 15. Ng5 {[%emt 0:00:34]} Bg6 {[%emt 0:00:06]} 16. Bxg6 {[%emt 0:00:08]} fxg6 {[%emt 0:00:05]} 17. a5 {[%emt 0:00:06]} Bxa5 {[%emt 0:08:21]} 18. Qf3 {[%emt 0:02:23]} Re7 {[%emt 0:01:04]} 19. Nxe6 {[%emt 0:08:44]} Rxe6 {[%emt 0:07:53]} 20. Qxd5 {[%emt 0:00:07]} Nf8 {[%emt 0:00:02]} 21. Rxa5 {[%emt 0:06:08]} a6 {[%emt 0:04:42]} 22. Bd2 {[%emt 0:12:33]} b6 {[%emt 0:09:59]} 23. Qxd8 {[%emt 0:02:21]} Rxd8 {[%emt 0:00:04]} 24. Rxa6 {[%emt 0:00:17]} Rxd4 {[%emt 0:04:40]} 25. Bc3 {[%emt 0:00:17]} Rd8 {[%emt 0:11:46]} 26. f4 {[%emt 0:05:34]} Nd7 {[%emt 0:00:32]} 27. Rd1 {[%emt 0:02:33]} Kf7 {[%emt 0:01:38]} 28. Ra7 {[%emt 0:05:20]} Ke8 {[%emt 0:01:39]} 29. Kf2 {[%emt 0:05:41]} h5 {[%emt 0:02:34]} 30. Kg3 {[%emt 0:08:43]} Rc6 {[%emt 0:09:08]} 31. Kh4 {[%emt 0:07:02]} Rc4 {[%emt 0:03:37]} 32. Kg5 {[%emt 0:08:14]} Nf8 {[%emt 0:01:17]} 33. Rxd8+ {[%emt 0:00:31]} Kxd8 {[%emt 0:00:05]} 34. g3 {[%emt 0:01:15]} Rc6 {[%emt 0:02:14]} 35. Ra8+ {[%emt 0:03:58]} 1-0

[Event "10th LCC FIDE Open 2018"]
[Site "London"]
[Date "2018.12.15"]
[Round "7"]
[White "Rogacewicz, Mikolaj"]
[Black "Brooks, Phil J"]
[Result "0-1"]
[ECO "E11"]
[WhiteElo "1925"]
[BlackElo "2184"]
[Annotator "NA"]
[PlyCount "66"]
[EventDate "2018.12.09"]
[EventType "swiss"]
[EventCountry "ENG"]
[SourceTitle "playchess.com"]
[Source "ChessBase"]
[SourceQuality "1"]
[TimeControl "40/5400+30:1800+30"]

1. d4 {[%emt 0:00:00]} e6 {[%emt 0:00:00]} 2. c4 {[%emt 0:01:03]} d5 {[%emt 0:00:00]} 3. Nf3 {[%emt 0:00:15]} Nf6 {[%emt 0:00:05]} 4. g3 {[%emt 0:00:15]} dxc4 {[%emt 0:00:26]} 5. Bg2 {[%emt 0:01:09]} Bb4+ {[%emt 0:01:32]} 6. Bd2 {[%emt 0:04:21]} a5 {[%emt 0:00:13]} 7. O-O {[%emt 0:03:07]} Nc6 {[%emt 0:02:31]} 8. e3 {[%emt 0:13:37]} Nd5 {[%emt 0:20:32] E11: Bogo-Indian} 9. Nc3 $146 {[%emt 0:26:28]} ({Predecessor:} 9. Qc1 Nb6 10. Bxb4 axb4 11. Nbd2 Na5 12. Ne5 Bd7 13. a3 c3 14. bxc3 bxc3 15. Qxc3 O-O 16. Rfc1 {½-½ (26) Maletin,P (2584)-Aleksandrov,A (2604) Mumbai 2010}) 9... Nb6 {[%emt 0:01:06]} 10. Qe2 {[%emt 0:03:34]} O-O {[%emt 0:00:15]} 11. Rad1 {[%emt 0:01:35]} Qe7 {[%emt 0:08:04]} 12. e4 {[%emt 0:02:39]} e5 {[%emt 0:03:22]} 13. d5 {[%emt 0:05:55]} Nd4 {[%emt 0:00:56]} 14. Nxd4 {[%emt 0:01:42]} exd4 {[%emt 0:00:05]} 15. Nb5 {[%emt 0:00:38]} d3 {[%emt 0:03:12]} 16. Qe3 {[%emt 0:04:15]} Bc5 {[%emt 0:06:43]} 17. Qf4 {[%emt 0:01:40]} Bd7 {[%emt 0:00:43]} 18. Nxc7 {[%emt 0:05:53]} Bd6 {[%emt 0:04:15]} 19. e5 {[%emt 0:00:26]} Bxe5 {[%emt 0:00:52]} 20. Qe3 {[%emt 0:00:51]} Rac8 {[%emt 0:02:18]} 21. Bc3 {[%emt 0:01:59]} f6 {[%emt 0:04:03]} 22. Qxb6 {[%emt 0:04:08]} Bxc7 {[%emt 0:00:44]} 23. Qxb7 $19 {[%emt 0:03:45]} (23. d6 $1 $15 Qxd6 24. Qxd6 Bxd6 25. Bxb7) 23... Qd6 {[%emt 0:07:52]} 24. Bd4 {[%emt 0:00:13]} Ra8 {[%emt 0:01:37]} 25. Ba7 {[%emt 0:00:16]} Rfb8 {[%emt 0:00:55]} 26. Bxb8 {[%emt 0:02:57]} Rxb8 {[%emt 0:00:06]} 27. Qa7 {[%emt 0:02:17]} Bb6 {[%emt 0:00:08]} 28. Qxb8+ {[%emt 0:00:37]} Qxb8 {[%emt 0:00:04]} 29. Rd2 {[%emt 0:02:41]} Qe5 {[%emt 0:07:25]} 30. Rc1 {[%emt 0:01:21]} Qd4 {[%emt 0:00:51]} 31. Re1 {[%emt 0:03:03]} Bf5 {[%emt 0:03:55]} 32. h3 {[%emt 0:01:58]} a4 {[%emt 0:00:14]} 33. Re8+ {[%emt 0:00:00]} Kf7 {[%emt 0:00:00]} 0-1